bitfinex/quotes_SOLUSD_20250129
["timestamp","ask_amount","ask_price","bid_price","bid_amount"]
[1738136167528,0.18849,233.79,233.78,30.52764473]
[1738136168719,0.063,233.79,233.78,30.52764473]
[1738136169931,0.063,233.79,233.78,23.776884]
[1738136170937,0.18849,233.79,233.78,23.776884]
[1738136175824,0.063,233.79,233.78,23.776884]
[1738136177143,0.063,233.79,233.78,30.52764473]
[1738136177626,0.063,233.79,233.78,34.80514473]
[1738136179733,0.063,233.79,233.78,36.46694473]
[1738136180137,0.063,233.79,233.78,37.46694473]
[1738136180332,6.71181243,233.97,233.83,20.0]
[1738136180539,6.71181243,233.97,233.95,6.75076073]
[1738136180738,6.71181243,233.97,233.96,23.776884]
[1738136181358,0.063,233.98,233.96,28.050984]
[1738136181657,0.063,233.98,233.97,30.52764473]
[1738136182949,0.063,233.98,233.97,34.3017108]
[1738136195650,0.063,233.98,233.97,38.5757108]
[1738136199465,0.063,233.98,233.97,121.34760364]
[1738136199650,0.0001,233.98,233.97,136.44193044]
[1738136199971,0.0001,233.99,233.98,24.776884]
[1738136201249,0.0001,233.99,233.98,29.050684]
[1738136202269,0.0001,233.99,233.98,39.5755108]
[1738136202655,0.0001,233.99,233.98,29.050684]
[1738136202850,0.0001,233.99,233.98,28.050684]
[1738136203250,0.0001,233.99,233.98,4.2738]
[1738136203970,0.0001,233.99,233.98,28.050684]
[1738136204974,0.0001,233.99,233.98,29.050684]
[1738136205269,0.0001,233.99,233.98,39.5755108]
[1738136205655,0.0001,233.99,233.98,29.050684]
[1738136206574,0.0001,233.99,233.98,36.78332945]
[1738136208068,0.0001,233.99,233.98,63.71391125]
[1738136210682,0.0001,233.99,233.98,281.88580409]
[1738136210882,0.063,234.03,234.02,20.0]
[1738136211087,0.063,234.03,234.02,133.28142229]
[1738136211380,0.0001,234.04,234.03,23.776884]
[1738136212153,0.03,234.07,234.06,1.0]
[1738136212372,0.03,234.07,234.06,31.50952945]
[1738136212582,0.0001,234.07,234.06,167.90952945]
[1738136212785,0.0001,234.07,234.06,168.90952945]
[1738136213373,0.0001,234.07,234.06,173.18192945]
[1738136213770,0.0001,234.07,234.06,171.18192945]
[1738136214159,0.0001,234.07,234.06,147.40504545]
[1738136214680,0.0001,234.07,234.06,171.18192945]
[1738136216582,0.0001,234.07,234.06,38.56444215]
[1738136217480,0.03,234.2,234.1,20.0]
[1738136217686,0.03,234.2,234.19,23.776884]
[1738136222275,0.03,234.2,234.11,11.6785]
[1738136222276,0.03,234.2,234.17,10.51515815]
[1738136222979,0.03,234.2,234.18,23.776884]
[1738136224386,0.03,234.2,234.19,10.51515815]
[1738136228190,0.03,234.2,234.19,38.56204215]
[1738136229767,0.03,234.2,234.19,34.29204215]
[1738136232093,0.59719,234.27,234.2,23.776884]
[1738136232293,0.12549,234.26,234.22,23.776884]
[1738136232666,0.12549,234.26,234.2,10.51515815]
[1738136233995,0.97919,234.26,234.2,10.51515815]
[1738136235273,0.97919,234.26,234.22,23.776884]
[1738136236990,0.12549,234.28,234.23,6.72371085]
[1738136237203,0.12549,234.24,234.15,6.72371085]
[1738136237388,6.72371085,234.23,234.15,6.72371085]
[1738136238007,6.72371085,234.21,234.13,6.72371085]
[1738136238375,6.72371085,234.21,234.14,23.776884]
[1738136238703,0.12549,234.22,234.11,13.3856]
[1738136238704,0.12549,234.22,234.16,23.776884]
[1738136239391,0.97939,234.22,234.16,23.776884]
[1738136241299,0.97939,234.22,234.1,6.723711]
[1738136241300,0.12549,234.2,234.13,6.72371085]
[1738136241816,0.12549,234.18,234.11,6.72371085]
[1738136242380,0.12549,234.18,234.13,6.72371085]
[1738136242683,0.8539,234.21,234.16,23.776884]
[1738136243577,0.12549,234.2,234.16,23.776884]
[1738136243779,0.97939,234.2,234.13,6.72371085]
[1738136245804,0.97939,234.2,234.14,23.776884]
[1738136248116,0.12549,234.21,234.16,23.776884]
[1738136249083,0.8538,234.23,234.16,23.776884]
[1738136249499,0.12549,234.22,234.16,23.776884]
[1738136250689,7.70300085,234.23,234.16,23.776884]
[1738136252986,0.063,234.26,234.21,23.776884]
[1738136253308,0.063,234.26,234.23,23.776884]
[1738136259013,0.063,234.26,234.21,23.776884]
[1738136260519,0.063,234.26,234.23,23.776884]
[1738136260816,0.063,234.26,234.25,43.776884]
[1738136262417,0.063,234.26,234.25,48.045784]
[1738136263900,0.063,234.26,234.25,54.76949485]
[1738136269612,0.063,234.26,234.25,30.99261085]
[1738136271102,0.063,234.26,234.25,54.76949485]
[1738136272205,0.063,234.26,234.25,273.94138769]
[1738136272399,0.063,234.26,234.25,272.94138769]
[1738136272597,0.063,234.26,234.25,43.776884]
[1738136273404,0.063,234.26,234.25,50.50059485]
[1738136274724,0.063,234.26,234.25,30.50059485]
[1738136274922,0.063,234.26,234.25,23.776884]
[1738136275119,0.9167,234.26,234.23,1.708599]
[1738136275517,0.9167,234.26,234.24,23.776884]
[1738136275714,0.9167,234.26,234.2,6.72371085]
[1738136276019,0.9167,234.26,234.21,6.72371]
[1738136276217,0.9167,234.26,234.25,0.03]
[1738136276403,1.04219,234.26,234.25,0.03]
[1738136278838,0.063,234.26,234.25,0.03]
[1738136280323,0.18849,234.26,234.25,0.03]
[1738136280520,0.063,234.26,234.25,0.03]
[1738136282739,0.063,234.26,234.25,30.53059485]
[1738136283449,0.063,234.26,234.25,34.79949485]
[1738136284306,0.063,234.26,234.25,28.075784]
[1738136286130,0.063,234.26,234.25,23.806884]
[1738136288729,0.063,234.26,234.25,0.03]
[1738136291742,0.063,234.26,234.16,0.03]
[1738136291743,0.12549,234.24,234.16,0.03]
[1738136291919,0.12549,234.18,234.16,0.03]
[1738136293136,0.97949,234.17,234.16,0.03]
[1738136294524,13.08225175,234.17,234.16,0.03]
[1738136297953,2.56399,234.17,234.16,0.03]
[1738136298239,0.97949,234.17,234.16,0.03]
[1738136299244,11.49775175,234.17,234.16,0.03]
[1738136303263,0.97949,234.17,234.16,0.03]
[1738136303957,11.49775175,234.17,234.16,0.03]
[1738136308855,11.49775175,234.17,234.16,0.0001]
[1738136310362,93.99775175,234.17,234.16,0.0001]
[1738136310845,96.53595175,234.17,234.16,0.0001]
[1738136313427,95.53595175,234.17,234.16,0.0001]
[1738136313935,96.53595175,234.17,234.16,0.0001]
[1738136314250,95.53595175,234.17,234.16,0.0001]
[1738136314661,91.75253445,234.17,234.16,0.0001]
[1738136314877,92.75253445,234.17,234.16,0.0001]
[1738136318256,20.12549,234.14,234.07,0.03]
[1738136318554,6.86033445,234.08,234.07,0.03]
[1738136321063,7.71473445,234.08,234.07,0.03]
[1738136329353,7.71473445,234.08,234.07,0.0001]
[1738136330650,8.71473445,234.08,234.07,0.0001]
[1738136330860,9.71473445,234.08,234.07,0.0001]
[1738136331055,6.86033445,234.02,234.01,0.03]
[1738136332574,7.71493445,234.02,234.01,0.03]
[1738136332764,0.98009,234.02,234.01,0.03]
[1738136333780,0.12549,234.02,234.01,0.03]
[1738136335554,0.98009,234.02,234.01,0.03]
[1738136337160,7.71493445,234.02,234.01,0.03]
[1738136347085,0.12549,234.01,233.98,0.03]
[1738136347384,6.86033445,233.99,233.98,0.03]
[1738136347581,6.86033445,233.93,233.92,0.03]
[1738136349486,7.71523445,233.93,233.92,0.03]
[1738136370703,0.98039,233.93,233.92,0.03]
[1738136371186,7.71523445,233.93,233.92,0.03]
[1738136376615,7.71523445,233.93,233.84,1.5733]
[1738136376798,0.12549,233.87,233.84,1.5733]
[1738136379016,0.98059,233.87,233.84,1.5733]
[1738136381809,7.71543445,233.87,233.84,1.5733]
[1738136382019,0.12549,233.84,233.83,0.03]
[1738136382203,6.86033445,233.84,233.83,0.03]
[1738136382901,7.71553445,233.84,233.83,0.03]
[1738136384719,0.98069,233.84,233.83,0.03]
[1738136385722,89.23484445,233.86,233.83,0.03]
[1738136385897,0.8552,233.85,233.83,0.03]
[1738136391015,82.5,233.86,233.83,0.03]
[1738136391808,83.3552,233.86,233.83,0.03]
[1738136392010,0.8552,233.86,233.83,0.03]
[1738136408335,0.12549,233.84,233.83,0.03]
[1738136408530,6.86033445,233.84,233.83,0.03]
[1738136409736,7.71553445,233.84,233.83,0.03]
[1738136409937,90.21553445,233.84,233.83,0.03]
[1738136410237,0.12549,233.75,233.65,1.5706]
[1738136410437,0.12549,233.67,233.65,1.5706]
[1738136410618,0.12549,233.67,233.64,6.58022488]
[1738136410822,6.73484445,233.66,233.64,6.58022488]
[1738136411116,0.12549,233.64,233.61,6.58022488]
[1738136411324,6.86033445,233.64,233.61,6.58022488]
[1738136411729,7.71633445,233.64,233.61,6.58022488]
[1738136411922,6.73484445,233.66,233.61,6.58022488]
[1738136412514,0.12549,233.65,233.61,6.58022488]
[1738136412720,0.12549,233.65,233.62,23.776884]
[1738136413034,0.12549,233.65,233.61,23.776884]
[1738136414841,6.73484445,233.68,233.61,23.776884]
[1738136415042,7.59064445,233.7,233.62,6.73484445]
[1738136415340,0.12549,233.69,233.64,23.776884]
[1738136417128,90.09054445,233.72,233.64,6.73484445]
[1738136417333,6.71181243,233.78,233.64,6.73484445]
[1738136417334,83.3556,233.76,233.7,23.776884]
[1738136417537,0.12549,233.75,233.7,23.776884]
[1738136418837,0.12549,233.75,233.72,23.776884]
[1738136419152,82.5,233.76,233.72,30.51172845]
[1738136419742,82.5,233.76,233.72,6.73484445]
[1738136422129,83.3555,233.76,233.72,6.73484445]
[1738136422328,0.12549,233.75,233.7,8.30734445]
[1738136422525,0.12549,233.75,233.69,6.73484445]
[1738136422727,6.86033445,233.75,233.67,6.73484445]
[1738136422925,6.73484445,233.73,233.65,6.73484445]
[1738136423648,0.98119,233.71,233.64,1.5553]
[1738136423854,0.98119,233.71,233.65,23.776884]
[1738136426233,0.8556,233.75,233.7,23.776884]
[1738136427027,0.12549,233.74,233.7,23.776884]
[1738136428952,0.98109,233.74,233.7,23.776884]
[1738136430750,0.98109,233.74,233.68,6.73484445]
[1738136434843,6.73484445,233.73,233.64,8.29014445]
[1738136435050,89.23484445,233.73,233.64,8.29014445]
[1738136435949,0.12549,233.7,233.64,8.29014445]
[1738136436855,82.62549,233.7,233.65,23.776884]
[1738136438855,0.8558,233.69,233.65,23.776884]
[1738136439058,0.12549,233.68,233.65,23.776884]
[1738136439934,0.12549,233.69,233.65,23.776884]
[1738136441158,0.98129,233.69,233.65,23.776884]
[1738136443260,0.98129,233.69,233.66,6.73484445]
[1738136444646,0.98129,233.69,233.64,6.73484445]
[1738136444849,0.98129,233.69,233.65,0.03]
[1738136445048,0.92484649,233.69,233.65,0.03]
[1738136457848,0.98784649,233.69,233.65,0.03]
[1738136460182,83.3558,233.68,233.65,0.03]
[1738136463955,83.48139,233.67,233.65,0.03]
[1738136464278,6.73484445,233.66,233.65,0.03]
[1738136466475,6.86033445,233.66,233.65,0.03]
[1738136466681,7.71623445,233.66,233.65,0.03]
[1738136466851,7.59074445,233.66,233.65,0.03]
[1738136467056,0.063,233.69,233.65,23.806884]
[1738136467257,0.063,233.69,233.67,23.776884]
[1738136470068,0.8558,233.68,233.65,0.03]
[1738136472883,0.063,233.69,233.65,23.806884]
[1738136473060,0.9188,233.69,233.65,23.806884]
[1738136474478,0.063,233.69,233.67,23.776884]
[1738136475564,0.063,233.69,233.68,30.51172845]
[1738136487178,0.9188,233.69,233.68,30.51172845]
[1738136487490,0.063,233.69,233.68,23.776884]
[1738136487999,0.063,233.69,233.68,30.51172845]
[1738136494404,0.063,233.69,233.68,30.54172845]
[1738136499991,0.063,233.69,233.68,23.806884]
[1738136500588,0.9188,233.69,233.68,23.806884]
[1738136501806,1.04429,233.69,233.68,0.03]
[1738136502003,7.77913445,233.69,233.68,0.03]
[1738136504104,1.04429,233.69,233.68,0.03]
[1738136505903,0.9188,233.69,233.68,0.03]
[1738136506104,0.063,233.69,233.68,30.54172845]
[1738136506410,0.063,233.69,233.68,31.54172845]
[1738136507305,0.063,233.69,233.68,30.54172845]
[1738136507522,0.063,233.69,233.68,31.54172845]
[1738136508500,0.063,233.69,233.68,35.82102845]
[1738136508820,0.063,233.69,233.68,34.82102845]
[1738136511717,0.063,233.77,233.73,23.776884]
[1738136511892,0.063,233.77,233.76,57.45110625]
[1738136512716,0.063,233.77,233.76,30.51172845]
[1738136517492,0.063,233.77,233.76,23.776884]
[1738136519714,0.063,233.77,233.76,34.78952845]
[1738136522603,0.063,233.77,233.76,61.72890625]
[1738136523319,0.063,233.77,233.76,34.78952845]
[1738136523525,0.063,233.77,233.76,30.51172845]
[1738136524943,0.063,233.77,233.76,34.78952845]
[1738136526228,0.063,233.77,233.76,61.72890625]
[1738136526620,0.063,233.77,233.76,62.72890625]
[1738136526814,1.6185,233.9,233.8,20.0]
[1738136527007,83.355,233.91,233.86,23.776884]
[1738136527908,0.12549,233.9,233.86,23.776884]
[1738136529712,0.98049,233.9,233.84,23.776884]
[1738136531007,1.04349,233.9,233.84,23.776884]
[1738136531427,6.73484445,233.87,233.79,6.73484445]
[1738136532133,0.12549,233.88,233.82,23.776884]
[1738136532630,0.8551,233.87,233.82,23.776884]
[1738136532935,82.5,233.89,233.86,23.776884]
[1738136533121,0.918,233.9,233.86,23.776884]
[1738136534334,0.918,233.9,233.85,23.776884]
[1738136535432,0.063,233.9,233.85,23.776884]
[1738136535608,0.8551,233.89,233.85,23.776884]
[1738136535815,0.12549,233.88,233.83,23.776884]
[1738136536119,6.86033445,233.88,233.82,23.776884]
[1738136537633,0.12549,233.86,233.8,6.73484445]
[1738136538029,0.12549,233.86,233.81,23.776884]
[1738136538624,0.12549,233.86,233.79,6.73484445]
[1738136538822,0.12549,233.86,233.8,6.73484445]
[1738136539829,0.8552,233.85,233.81,23.776884]
[1738136540030,0.12549,233.84,233.8,23.776884]
[1738136540940,0.12549,233.84,233.78,6.73484445]
[1738136541131,0.8553,233.83,233.78,6.73484445]
[1738136542120,0.8553,233.83,233.8,23.776884]
[1738136551342,0.8553,233.82,233.8,23.776884]
[1738136551556,0.12549,233.81,233.77,0.03]
[1738136553350,0.12549,233.79,233.77,0.03]
[1738136554638,6.73484445,233.78,233.77,0.03]
[1738136555569,89.23484445,233.8,233.77,0.03]
[1738136555746,0.12549,233.79,233.77,0.03]
[1738136556959,0.98089,233.79,233.77,0.03]
[1738136562520,6.86033445,233.78,233.77,0.03]
[1738136564148,7.71583445,233.78,233.77,0.03]
[1738136566274,6.73484445,233.78,233.77,1.5521]
[1738136566455,0.063,233.83,233.82,23.776884]
[1738136566662,0.063,233.83,233.82,30.51172845]
[1738136576664,0.063,233.83,233.82,34.78842845]
[1738136578578,0.063,233.83,233.82,30.51172845]
[1738136579181,0.063,233.83,233.82,34.78842845]
[1738136585881,0.063,233.88,233.86,23.776884]
[1738136586066,0.063,233.88,233.87,6.73484445]
[1738136586689,0.063,233.88,233.87,30.51172845]
[1738136608706,0.063,233.88,233.87,61.72690625]
[1738136609390,0.063,233.9,233.89,20.0]
[1738136609592,0.063,233.92,233.89,50.51172845]
[1738136609909,0.063,233.92,233.91,30.51172845]
[1738136610696,0.063,233.92,233.91,34.78682845]
[1738136611317,0.063,233.92,233.91,30.51172845]
[1738136611499,0.063,233.92,233.91,34.78682845]
[1738136614816,0.063,233.92,233.91,30.51172845]
[1738136615921,0.063,233.92,233.91,34.78682845]
[1738136620712,0.063,233.92,233.91,30.51172845]
[1738136636647,0.063,233.92,233.91,23.776884]
[1738136636954,0.9179,233.92,233.91,23.776884]
[1738136637524,0.9179,233.92,233.9,0.03]
[1738136641127,6.86033445,233.91,233.9,0.03]
[1738136642720,7.71533445,233.91,233.9,0.03]
[1738136642941,14.25373445,233.91,233.9,0.03]
[1738136643641,0.98049,233.91,233.9,0.03]
[1738136646542,0.063,233.92,233.91,23.776884]
[1738136648244,0.063,233.92,233.91,6.73484445]
[1738136649149,0.063,233.92,233.91,23.776884]
[1738136655253,0.063,233.92,233.9,0.03]
[1738136656055,1.04349,233.92,233.9,0.03]
[1738136659355,83.48049,233.91,233.9,0.03]
[1738136665259,0.98049,233.91,233.9,0.03]
[1738136669261,7.71533445,233.91,233.9,0.03]
[1738136675163,7.77833445,233.91,233.9,0.03]
[1738136680645,1.04349,233.91,233.9,0.03]
[1738136681470,7.77833445,233.91,233.9,0.03]
[1738136689176,0.18849,233.91,233.9,0.03]
[1738136689380,0.063,233.91,233.9,0.03]
[1738136689678,0.063,233.91,233.9,6.76484445]
[1738136690880,0.063,233.91,233.9,0.03]
[1738136695599,1.04349,233.91,233.9,0.03]
[1738136696983,0.063,233.91,233.9,0.03]
[1738136711026,0.063,233.91,233.9,28.082184]
[1738136711912,0.063,233.91,233.9,29.082184]
[1738136712115,0.063,233.92,233.9,36.791184]
[1738136712305,0.063,233.92,233.91,30.51172845]
[1738136713106,0.063,233.92,233.91,34.78682845]
[1738136714607,0.063,233.92,233.91,35.78682845]
[1738136715213,0.063,233.98,233.93,1.0]
[1738136715435,0.063,233.98,233.97,32.02142845]
[1738136717214,0.063,233.98,233.97,36.29542845]
[1738136720626,0.063,233.98,233.95,88.50673729]
[1738136720839,0.063,233.98,233.95,6.73484445]
[1738136721052,0.12549,233.97,233.93,6.73484445]
[1738136721724,0.12549,233.97,233.94,23.776884]
[1738136723337,0.18849,233.98,233.93,0.03]
[1738136723553,0.8548,233.97,233.93,0.03]
[1738136724038,0.18849,233.98,233.93,0.03]
[1738136724333,1.04319,233.98,233.93,0.03]
[1738136724518,0.18849,233.98,233.94,23.776884]
[1738136725834,0.063,233.98,233.94,23.776884]
[1738136726015,0.063,233.98,233.97,6.73484445]
[1738136726217,0.063,233.98,233.97,30.51172845]
[1738136727533,0.063,233.98,233.97,34.78572845]
[1738136732215,0.063,233.98,233.97,40.70935616]
[1738136732824,0.063,234.01,234.0,43.776884]
[1738136733033,0.063,234.01,234.0,77.45110625]
[1738136734050,0.063,234.01,234.0,81.72460625]
[1738136734335,0.063,234.01,234.0,82.72460625]
[1738136734542,0.063,234.01,234.0,81.72460625]
[1738136735645,0.063,234.01,234.0,54.78522845]
[1738136735826,0.063,234.01,234.0,55.78522845]
[1738136736542,0.063,234.01,234.0,136.55712129]
[1738136736942,0.063,234.01,234.0,137.55712129]
[1738136737637,0.063,234.01,234.0,136.55712129]
[1738136737958,0.063,234.01,234.0,137.55712129]
[1738136738949,0.063,234.01,234.0,164.49649909]
[1738136741648,0.063,234.01,234.0,136.55712129]
[1738136746151,0.063,234.01,234.0,163.49649909]
[1738136749631,0.063,234.01,234.0,165.20636709]
[1738136751639,0.063,234.01,234.0,171.1299948]
[1738136752351,0.0001,234.01,234.0,171.1299948]
[1738136752534,0.063,234.07,234.05,23.776884]
[1738136752730,0.063,234.07,234.06,30.51172845]
[1738136754555,0.063,234.07,234.06,34.78412845]
[1738136756032,0.063,234.07,234.06,30.51172845]
[1738136760354,0.063,234.07,234.06,6.73484445]
[1738136760534,0.063,234.07,234.06,11.00724445]
[1738136760734,0.063,234.07,234.06,6.73484445]
[1738136761563,0.063,234.07,234.04,6.73484445]
[1738136762737,0.063,234.07,234.06,6.73484445]
[1738136762940,0.063,234.07,234.0,6.73484445]
[1738136763140,0.12549,234.02,233.98,0.03]
[1738136764658,0.98009,234.02,233.98,0.03]
[1738136764845,1.69489,234.0,233.98,0.03]
[1738136769166,2.54959,234.0,233.98,0.03]
[1738136773271,7.71503445,233.99,233.98,0.03]
[1738136777971,0.12549,233.99,233.98,0.03]
[1738136782555,6.73484445,234.05,233.98,0.03]
[1738136782764,82.563,234.07,233.98,0.03]
[1738136782765,82.563,234.07,234.02,6.73484445]
[1738136783254,0.12549,234.06,234.02,6.73484445]
[1738136783778,0.12549,234.06,234.0,6.73484445]
[1738136784556,6.86033445,234.04,233.98,0.03]
[1738136786371,0.12549,234.04,233.98,6.76484445]
[1738136786576,83.4174,234.07,234.0,6.73484445]
[1738136786778,0.12549,234.06,234.0,6.73484445]
[1738136787162,6.86033445,234.06,233.98,31.03864445]
[1738136787363,6.86033445,234.06,233.98,6.76484445]
[1738136788581,0.12549,234.06,234.0,6.73484445]
[1738136788778,0.12549,234.04,233.98,11.03864445]
[1738136789082,0.12549,234.04,233.98,6.76484445]
[1738136789279,6.86033445,234.04,233.98,0.03]
[1738136791582,0.12549,234.02,233.98,0.03]
[1738136793282,0.97999,234.03,233.98,0.03]
[1738136793785,0.12549,234.01,233.98,0.03]
[1738136795091,6.73484445,234.04,233.98,0.03]
[1738136795386,82.5,234.06,233.99,11.00834445]
[1738136795577,0.063,234.04,233.99,11.00834445]
[1738136796690,0.063,234.04,234.01,6.73484445]
[1738136797864,0.063,234.04,234.03,6.73484445]
[1738136798588,0.063,234.04,234.01,6.73484445]
[1738136799389,0.063,234.04,234.03,6.73484445]
[1738136799568,0.063,234.04,234.03,30.51172845]
[1738136801578,0.063,234.04,234.03,34.78462845]
[1738136804682,0.063,234.04,234.03,117.55652129]
[1738136807789,0.063,234.07,234.06,74.776884]
[1738136808007,0.063,234.07,234.06,81.51172845]
[1738136810390,0.063,234.07,234.06,85.78412845]
[1738136810594,0.063,234.07,234.06,167.55602129]
[1738136815592,0.063,234.07,234.06,136.55602129]
[1738136816894,0.063,234.07,234.06,139.41602129]
[1738136817216,0.063,234.07,234.06,140.41602129]
[1738136817403,0.063,234.07,234.06,170.41602129]
[1738136820420,0.063,234.07,234.06,172.12532629]
[1738136822116,0.063,234.12,234.11,20.0]
[1738136822315,0.0001,234.12,234.11,159.22299909]
[1738136822715,0.0001,234.12,234.11,160.22299909]
[1738136823621,0.063,234.16,234.15,1.0]
[1738136823819,0.063,234.22,234.19,20.0]
[1738136824125,0.063,234.22,234.21,34.78132845]
[1738136824710,0.063,234.22,234.21,35.78132845]
[1738136824915,0.063,234.22,234.21,34.78132845]
[1738136826520,0.063,234.22,234.21,30.51172845]
[1738136832234,0.063,234.22,234.21,34.78132845]
[1738136833634,0.063,234.22,234.21,30.51172845]
[1738136835236,0.063,234.22,234.21,34.78132845]
[1738136836034,0.063,234.22,234.21,36.48988445]
[1738136838138,0.063,234.22,234.21,37.48988445]
[1738136838924,0.063,234.22,234.21,38.48988445]
[1738136840729,0.063,234.22,234.21,40.23651339]
[1738136841243,0.063,234.22,234.21,41.85161339]
[1738136841436,0.063,234.25,234.24,1.0]
[1738136841638,0.063,234.25,234.24,31.51172845]
[1738136842422,0.063,234.25,234.24,62.72020625]
[1738136843724,0.0001,234.25,234.24,62.72020625]
[1738136845742,0.0001,234.25,234.24,144.49209909]
[1738136846325,0.063,234.3,234.29,20.0]
[1738136846647,0.063,234.3,234.29,50.51172845]
[1738136847952,0.063,234.3,234.29,54.77992845]
[1738136848547,82.94498234,234.39,234.35,20.0]
[1738136848755,82.94498234,234.39,234.37,30.51172845]
[1738136849261,82.94498234,234.39,234.37,31.51172845]
[1738136850356,0.03,234.54,234.42,20.0]
[1738136850545,0.03,234.54,234.47,6.73484445]
[1738136850861,0.03,234.54,234.39,30.0]
[1738136850862,7.74303445,234.54,234.45,6.73484445]
[1738136851159,8.16933445,234.54,234.48,20.0]
[1738136851340,6.89033445,234.54,234.48,20.0]
[1738136851542,8.16943445,234.54,234.48,20.0]
[1738136851929,7.66943445,234.54,234.45,6.73484445]
[1738136852130,6.73484445,234.52,234.45,6.73484445]
[1738136852359,8.01404445,234.52,234.45,6.73484445]
[1738136853426,8.01404445,234.52,234.43,26.73484445]
[1738136854235,0.12549,234.51,234.43,26.73484445]
[1738136854438,23.902374,234.51,234.43,26.73484445]
[1738136854644,0.12549,234.49,234.43,26.73484445]
[1738136854831,0.12549,234.49,234.43,6.73484445]
[1738136856530,23.902374,234.49,234.4,20.0]
[1738136856735,0.12549,234.47,234.41,6.73484445]
[1738136856936,0.12549,234.47,234.43,0.063]
[1738136857752,1.40479,234.49,234.43,0.063]
[1738136858565,0.12549,234.47,234.43,0.063]
[1738136858939,1.78899,234.47,234.43,0.063]
[1738136860136,0.12549,234.45,234.43,0.063]
[1738136861246,1.6635,234.47,234.43,0.063]
[1738136861859,0.12549,234.46,234.43,0.063]
[1738136864677,1.40499,234.46,234.43,0.063]
[1738136864841,0.12549,234.48,234.46,20.0]
[1738136865375,0.12549,234.5,234.46,20.0]
[1738136865559,1.2793,234.51,234.45,6.73484445]
[1738136866171,0.12549,234.5,234.45,6.73484445]
[1738136867668,84.141,234.52,234.43,0.063]
[1738136867669,0.12549,234.48,234.43,0.063]
[1738136868967,0.12549,234.46,234.43,0.063]
[1738136869272,0.12549,234.46,234.45,0.063]
[1738136870364,25.181774,234.48,234.45,0.063]
[1738136871364,0.12549,234.46,234.45,0.063]
[1738136872654,1.40499,234.46,234.45,0.063]
[1738136875864,0.12549,234.46,234.45,0.063]
[1738136876070,1.2794,234.49,234.45,0.063]
[1738136876363,0.12549,234.48,234.45,0.063]
[1738136876962,82.5,234.5,234.45,6.79784445]
[1738136877257,8.01394445,234.53,234.45,11.06304445]
[1738136877458,0.12549,234.52,234.45,11.06304445]
[1738136878674,1.40469,234.52,234.45,6.79784445]
[1738136880274,6.73484445,234.53,234.45,6.79784445]
[1738136880473,8.01394445,234.53,234.45,11.06304445]
[1738136880776,0.12549,234.52,234.45,11.06304445]
[1738136880971,0.12549,234.52,234.47,6.73484445]
[1738136881171,0.15549,234.54,234.47,6.73484445]
[1738136881376,1.43459,234.54,234.47,6.73484445]
[1738136881976,0.15549,234.54,234.47,6.73484445]
[1738136883075,1.43459,234.54,234.47,6.73484445]
[1738136883864,6.73484445,234.53,234.45,6.79784445]
[1738136884467,8.01394445,234.53,234.45,6.79784445]
[1738136885585,0.15549,234.54,234.47,6.73484445]
[1738136885586,0.03,234.54,234.47,6.73484445]
[1738136885789,1.3091,234.54,234.47,6.73484445]
[1738136886072,0.12549,234.53,234.47,6.73484445]
[1738136886462,0.12549,234.53,234.49,6.73484445]
[1738136887677,0.15549,234.54,234.47,6.73484445]
[1738136888061,6.73484445,234.53,234.45,6.79784445]